bitfinex/quotes_SOLUSD_20250829
["timestamp","ask_amount","ask_price","bid_price","bid_amount"]
[1756457709640,28.29464694,207.55,207.52,0.68]
[1756457709840,4.81602774,207.64,207.49,0.68]
[1756457709841,28.29464694,207.54,207.49,0.68]
[1756457710018,28.29464694,207.54,207.5,0.68]
[1756457710346,42.85609709,207.64,207.48,26.0]
[1756457710347,43.29609709,207.64,207.51,0.68]
[1756457710561,28.29464694,207.58,207.51,28.97464694]
[1756457710851,42.14,207.62,207.51,28.97464694]
[1756457711054,0.06,207.65,207.53,13.59559401]
[1756457711296,28.35464694,207.65,207.56,26.0]
[1756457711549,0.06,207.65,207.59,28.29464694]
[1756457711723,0.06,207.65,207.6,28.29464694]
[1756457711924,28.29464694,207.64,207.59,0.68]
[1756457712125,28.35464694,207.65,207.6,0.68]
[1756457712322,28.29464694,207.62,207.56,28.97464694]
[1756457712553,28.29464694,207.6,207.56,0.68]
[1756457712950,28.29464694,207.62,207.57,0.68]
[1756457713155,28.29464694,207.62,207.56,28.29464694]
[1756457713156,0.06,207.65,207.6,28.29464694]
[1756457713363,0.06,207.65,207.61,28.29464694]
[1756457713658,0.06,207.65,207.62,0.68]
[1756457713819,28.29464694,207.64,207.59,0.68]
[1756457714015,28.29464694,207.64,207.6,0.68]
[1756457714448,0.06,207.65,207.51,0.68]
[1756457714449,28.29464694,207.61,207.51,0.68]
[1756457714651,28.29464694,207.56,207.51,0.68]
[1756457714953,42.24,207.65,207.47,0.68]
[1756457714954,28.29464694,207.52,207.47,0.68]
[1756457715251,28.29464694,207.49,207.44,0.68]
[1756457715543,28.29464694,207.49,207.45,0.68]
[1756457715716,28.29464694,207.49,207.46,0.68]
[1756457716050,28.29464694,207.47,207.38,4.82206577]
[1756457716347,28.29464694,207.45,207.39,0.68]
[1756457716550,28.29464694,207.43,207.39,0.68]
[1756457716751,28.29464694,207.45,207.39,28.97464694]
[1756457716955,26.44,207.51,207.39,28.97464694]
[1756457717124,28.29464694,207.45,207.39,28.97464694]
[1756457717442,42.38,207.48,207.39,5.50172047]
[1756457717443,28.29464694,207.43,207.39,5.50172047]
[1756457717647,28.29464694,207.43,207.4,0.68]
[1756457717825,28.29464694,207.43,207.41,0.68]
[1756457718021,28.29464694,207.42,207.37,4.82213554]
[1756457718245,28.29464694,207.38,207.35,0.68]
[1756457718725,28.29464694,207.37,207.35,0.68]
[1756457719442,28.29464694,207.37,207.35,5.50275034]
[1756457719829,28.29464694,207.37,207.35,0.68]
[1756457720253,28.29464694,207.36,207.32,4.85326989]
[1756457720433,28.29464694,207.39,207.33,0.68]
[1756457720743,4.8202063,207.46,207.33,28.97464694]
[1756457720950,28.29464694,207.39,207.34,0.68]
[1756457721141,28.29464694,207.39,207.35,5.50275184]
[1756457721326,28.29464694,207.4,207.36,0.68]
[1756457721526,28.29464694,207.4,207.37,0.68]
[1756457721925,28.29464694,207.39,207.37,0.68]
[1756457722328,28.29464694,207.38,207.32,0.71]
[1756457722635,42.64,207.44,207.32,0.03]
[1756457722636,0.44,207.43,207.32,0.03]
[1756457722931,0.44,207.43,207.32,0.71]
[1756457723121,4.8213683,207.41,207.32,5.53338869]
[1756457723324,28.29464694,207.35,207.32,0.71]
[1756457724133,28.29464694,207.37,207.33,0.68]
[1756457724449,28.29464694,207.36,207.33,0.68]
[1756457724660,28.29464694,207.34,207.32,0.03]
[1756457724829,28.29464694,207.33,207.32,0.03]
[1756457725154,28.29464694,207.37,207.32,5.53346131]
[1756457725342,12.0505074,207.47,207.32,5.53346131]
[1756457725343,19.57521326,207.36,207.33,0.68]
[1756457726376,42.22,207.4,207.32,0.03]
[1756457726377,0.44,207.35,207.32,0.03]
[1756457726672,19.57521326,207.33,207.32,0.03]
[1756457727038,19.57521326,207.34,207.32,0.03]
[1756457727452,19.57521326,207.33,207.32,0.03]
[1756457728058,19.57521326,207.35,207.32,0.03]
[1756457728263,19.57521326,207.36,207.32,0.03]
[1756457728564,19.57521326,207.35,207.32,0.03]
[1756457728750,19.57521326,207.36,207.32,0.71]
[1756457729061,19.57521326,207.35,207.32,0.71]
[1756457729478,19.57521326,207.36,207.32,5.53341038]
[1756457729770,19.57521326,207.37,207.32,5.53341038]
[1756457730256,42.12,207.4,207.32,0.03]
[1756457730435,19.57521326,207.33,207.32,0.03]
[1756457731267,0.44,207.35,207.32,0.03]
[1756457731557,19.57521326,207.33,207.32,0.03]
[1756457731775,19.57521326,207.33,207.3,0.03]
[1756457731965,0.41,207.41,207.31,0.72]
[1756457732143,73.31160077,207.4,207.3,0.03]
[1756457732638,19.57521326,207.36,207.3,20.32521326]
[1756457732848,42.1,207.39,207.3,0.03]
[1756457733048,5.23081549,207.44,207.31,0.72]
[1756457733345,19.57521326,207.34,207.3,0.03]
[1756457733654,19.57521326,207.35,207.3,0.03]
[1756457733837,19.57521326,207.37,207.31,20.29521326]
[1756457734173,42.08,207.43,207.32,0.72]
[1756457734341,19.57521326,207.37,207.32,0.72]
[1756457734841,0.41,207.42,207.33,20.29521326]
[1756457735040,19.57521326,207.39,207.33,20.29521326]
[1756457735245,19.57521326,207.38,207.33,0.72]
[1756457735451,19.57521326,207.36,207.3,0.03]
[1756457735777,19.57521326,207.31,207.3,0.03]
[1756457735947,62.08521326,207.31,207.2,0.72]
[1756457736155,19.57521326,207.22,207.19,1.05783585]
[1756457736338,19.95521326,207.3,207.19,1.05783585]
[1756457736339,45.95521326,207.3,207.19,1.05783585]
[1756457736537,0.38,207.29,207.19,1.05783585]
[1756457736743,19.57521326,207.25,207.19,21.35304911]
[1756457736936,19.57521326,207.23,207.19,1.77783585]
[1756457737156,42.1,207.29,207.19,1.05783585]
[1756457737354,0.38,207.25,207.19,1.05783585]
[1756457737566,4.82439212,207.28,207.19,1.05783585]
[1756457737770,42.1,207.28,207.2,0.72]
[1756457738076,19.57521326,207.23,207.19,1.05783585]
[1756457738366,19.57521326,207.23,207.19,5.88431066]
[1756457738567,42.1,207.28,207.19,6.60431066]
[1756457738756,19.57521326,207.24,207.19,6.60431066]
[1756457738967,19.57521326,207.22,207.19,1.77783585]
[1756457739170,19.57521326,207.2,207.19,1.05783585]
[1756457739486,19.57521326,207.21,207.19,1.05783585]
[1756457739776,4.82416051,207.29,207.2,0.72]
[1756457739978,42.02,207.28,207.2,0.72]
[1756457740171,19.57521326,207.23,207.19,5.88430459]
[1756457740372,19.57521326,207.23,207.19,5.88427131]
[1756457740584,42.4,207.28,207.19,5.88427131]
[1756457740903,19.57521326,207.24,207.2,0.72]
[1756457741092,28.07971839,207.42,207.2,0.72]
[1756457741383,39.0822983,207.37,207.22,16.89020486]
[1756457741587,0.38,207.37,207.23,14.31559401]
[1756457741778,0.38,207.37,207.22,16.89020486]
[1756457741779,19.57521326,207.33,207.26,19.57521326]
[1756457742090,19.57521326,207.3,207.24,0.72]
[1756457742600,0.38,207.35,207.24,20.29521326]
[1756457742761,0.38,207.35,207.25,19.57521326]
[1756457742969,19.57521326,207.31,207.25,20.29521326]
[1756457743282,19.57521326,207.31,207.26,0.72]
[1756457743457,19.57521326,207.31,207.27,0.72]
[1756457743771,19.57521326,207.31,207.28,0.72]
[1756457743971,0.38,207.41,207.29,20.29521326]
[1756457744173,19.57521326,207.38,207.31,19.57521326]
[1756457744362,19.57521326,207.38,207.32,0.72]
[1756457744764,41.94,207.43,207.33,19.57521326]
[1756457745091,19.57521326,207.4,207.33,19.57521326]
[1756457745459,19.57521326,207.4,207.34,4.82299604]
[1756457745656,41.88,207.43,207.35,19.57521326]
[1756457745881,49.259408,207.5,207.37,19.57521326]
[1756457745882,0.44,207.47,207.37,19.57521326]
[1756457746083,19.57521326,207.44,207.37,19.57521326]
[1756457746285,19.57521326,207.44,207.38,19.57521326]
[1756457746489,42.32,207.47,207.36,0.72]
[1756457746706,0.06,207.47,207.42,19.57521326]
[1756457746869,19.57521326,207.44,207.38,0.72]
[1756457747068,0.38,207.46,207.38,0.72]
[1756457747262,19.57521326,207.44,207.38,0.72]
[1756457747572,19.57521326,207.44,207.39,4.82183326]
[1756457747768,26.0,207.4,207.27,0.72]
[1756457747981,19.57521326,207.34,207.27,20.29521326]
[1756457748286,19.57521326,207.33,207.29,0.03]
[1756457748873,0.38,207.36,207.29,0.03]
[1756457749178,19.57521326,207.33,207.26,0.72]
[1756457749387,0.38,207.35,207.26,0.72]
[1756457749592,5.20297296,207.35,207.27,4.82460133]
[1756457749785,4.82249966,207.37,207.27,33.16509954]
[1756457749994,42.1,207.41,207.33,0.72]
[1756457750292,28.34049821,207.37,207.33,0.72]
[1756457750473,28.34049821,207.38,207.33,0.72]
[1756457750673,28.34049821,207.39,207.34,0.72]
[1756457751185,28.34049821,207.37,207.34,0.72]
[1756457751381,28.34049821,207.36,207.34,0.72]
[1756457751992,28.34049821,207.35,207.32,0.03]
[1756457752285,0.06,207.44,207.35,13.59559401]
[1756457752488,0.06,207.44,207.36,0.72]
[1756457752489,28.34049821,207.42,207.36,0.72]
[1756457752676,0.44,207.44,207.33,26.72]
[1756457752874,28.34049821,207.37,207.33,26.72]
[1756457753188,0.44,207.44,207.34,0.72]
[1756457753373,28.34049821,207.38,207.34,0.72]
[1756457753577,28.34049821,207.38,207.35,5.5425799]
[1756457754271,0.44,207.44,207.36,0.72]
[1756457754272,28.34049821,207.42,207.36,0.72]
[1756457754601,28.34049821,207.41,207.36,0.72]
[1756457754786,28.34049821,207.37,207.33,0.72]
[1756457755092,28.34049821,207.36,207.32,4.85342049]
[1756457755295,28.34049821,207.37,207.33,0.72]
[1756457755691,28.34049821,207.38,207.34,0.72]
[1756457756070,28.34049821,207.37,207.34,0.72]
[1756457756297,28.34049821,207.36,207.32,0.03]
[1756457756491,26.0,207.4,207.32,0.03]
[1756457756693,28.34049821,207.34,207.32,0.03]
[1756457757703,4.82183326,207.39,207.32,0.03]
[1756457757880,28.34049821,207.34,207.32,0.03]
[1756457758596,28.34049821,207.35,207.32,0.03]
[1756457758795,4.82183326,207.39,207.32,0.03]
[1756457758990,0.38,207.4,207.33,0.72]
[1756457759175,28.34049821,207.35,207.32,0.03]
[1756457759376,28.34049821,207.34,207.32,0.03]
[1756457759791,28.34049821,207.35,207.32,0.03]
[1756457760201,28.34049821,207.34,207.32,0.03]
[1756457760400,0.06,207.44,207.32,0.03]
[1756457760401,0.06,207.44,207.35,13.59559401]
[1756457760585,0.06,207.44,207.38,28.34049821]
[1756457760781,0.06,207.44,207.39,28.34049821]
[1756457761188,0.06,207.44,207.4,0.7]
[1756457761481,0.06,207.44,207.41,0.7]
[1756457762403,0.06,207.44,207.42,29.04049821]
[1756457762606,0.06,207.44,207.43,0.7]
[1756457763320,0.06,207.47,207.44,13.59559401]
[1756457763518,0.06,207.47,207.46,41.93609222]
[1756457763886,0.06,207.47,207.46,42.63609222]
[1756457764086,0.06,207.47,207.46,47.45629852]
[1756457764325,0.06,207.49,207.48,39.59559401]
[1756457764620,0.06,207.49,207.48,67.93609222]
[1756457764909,0.06,207.49,207.48,68.63609222]
[1756457766114,0.06,207.49,207.48,5.51974166]
[1756457766901,0.06,207.49,207.48,0.7]
[1756457767309,0.06,207.49,207.48,5.51974166]
[1756457767514,0.06,207.49,207.48,19.11533567]
[1756457768104,28.40049821,207.49,207.45,31.52023776]
[1756457768307,28.34049821,207.46,207.45,0.7]
[1756457768513,28.34049821,207.47,207.45,0.7]
[1756457768691,28.34049821,207.47,207.46,0.7]
[1756457769495,28.34049821,207.47,207.44,60.21621551]
[1756457769726,0.06,207.49,207.44,60.21621551]
[1756457769727,28.40049821,207.49,207.45,0.7]
[1756457769891,0.06,207.49,207.46,0.7]
[1756457770090,28.40049821,207.49,207.47,0.7]
[1756457770303,0.06,207.49,207.44,60.91621551]
[1756457770512,28.34049821,207.48,207.45,0.7]
[1756457770703,28.34049821,207.46,207.45,42.42]
[1756457770902,0.06,207.49,207.45,42.42]
[1756457771131,28.34049821,207.47,207.45,42.42]
[1756457771335,0.06,207.49,207.45,42.42]
[1756457771537,28.34049821,207.46,207.42,26.7]
[1756457771697,28.34049821,207.44,207.43,41.68]
[1756457771894,28.34049821,207.45,207.43,41.68]
[1756457772092,28.34049821,207.46,207.44,0.7]
[1756457772315,28.34049821,207.45,207.41,0.03]
[1756457772517,28.34049821,207.45,207.41,47.21132816]
[1756457772833,28.34049821,207.45,207.41,42.39]
[1756457773200,5.31958767,207.49,207.41,42.39]
[1756457773404,28.34049821,207.45,207.41,42.39]
[1756457773713,28.34049821,207.45,207.41,47.2112997]
[1756457774227,28.34049821,207.45,207.42,0.7]
[1756457774696,28.34049821,207.43,207.41,0.03]
[1756457774899,28.34049821,207.42,207.41,0.03]
[1756457775425,19.56631609,207.42,207.41,0.03]
[1756457775595,5.3195243,207.49,207.41,0.03]
[1756457775799,19.56631609,207.44,207.41,0.73]
[1756457776198,19.56631609,207.42,207.41,0.03]
[1756457776612,20.00631609,207.42,207.41,0.03]
[1756457776850,19.56631609,207.42,207.41,0.03]
[1756457777208,19.56631609,207.43,207.41,0.03]
[1756457777416,5.31951113,207.49,207.41,0.73]
[1756457777635,19.56631609,207.43,207.41,0.73]
[1756457777941,19.56631609,207.44,207.41,0.03]
[1756457778121,19.56631609,207.45,207.42,0.7]
[1756457778320,5.31958456,207.49,207.42,5.52105936]
[1756457778623,19.56631609,207.46,207.42,5.52105936]
[1756457778827,19.56631609,207.46,207.41,41.61]
[1756457779032,0.06,207.49,207.42,20.26631609]
[1756457779231,0.06,207.49,207.41,46.43127003]
[1756457779232,0.06,207.49,207.46,19.56631609]
[1756457779545,0.06,207.49,207.45,19.56631609]
[1756457779847,0.06,207.49,207.46,20.26631609]
[1756457780156,0.06,207.49,207.47,13.59559401]
[1756457780314,0.06,207.49,207.48,24.38605775]
[1756457780635,0.06,207.49,207.48,25.08605775]
[1756457781935,0.06,207.49,207.48,38.68165176]
[1756457782736,0.06,207.49,207.48,64.68165176]
[1756457782909,0.06,207.52,207.48,76.73100591]
[1756457783109,0.06,207.52,207.51,33.1619101]
[1756457783329,0.06,207.52,207.51,46.67180106]
[1756457783545,0.06,207.52,207.51,47.37180106]
[1756457783934,0.06,207.52,207.51,19.11463887]
[1756457784138,0.06,207.52,207.51,88.07180106]
[1756457784320,0.06,207.52,207.51,88.77180106]
[1756457785037,0.06,207.52,207.51,5.51904486]
[1756457785347,0.06,207.52,207.51,114.77180106]
[1756457786241,0.06,207.52,207.51,151.87180106]
[1756457786424,0.06,207.52,207.51,193.23180106]
[1756457787953,0.06,207.52,207.51,114.71180106]
[1756457790043,0.06,207.52,207.51,41.22]
[1756457790247,28.75716219,207.52,207.41,0.73]
[1756457790445,28.25716219,207.48,207.42,41.24]
[1756457790652,0.44,207.51,207.43,28.25716219]
[1756457790852,28.25716219,207.5,207.43,28.25716219]
[1756457791039,28.25716219,207.5,207.42,46.06090724]
[1756457791040,28.25716219,207.48,207.42,74.31806943]
[1756457791234,28.25716219,207.48,207.42,41.24]
[1756457791440,28.25716219,207.46,207.45,26.0]
[1756457791642,28.25716219,207.47,207.42,41.24]
[1756457792041,0.06,207.52,207.46,67.8527562]
[1756457792234,0.06,207.52,207.47,69.43716219]
[1756457792464,28.25716219,207.51,207.47,41.18]
[1756457792838,28.25716219,207.48,207.41,33.10843223]
[1756457793039,28.25716219,207.46,207.43,41.24]
[1756457793455,28.69716219,207.46,207.43,41.24]
[1756457793637,28.25716219,207.46,207.43,41.24]
[1756457794458,28.25716219,207.46,207.41,0.03]
[1756457794639,28.25716219,207.44,207.41,0.03]
[1756457794836,5.26045798,207.45,207.41,0.03]
[1756457795035,28.25716219,207.42,207.41,0.03]
[1756457795556,28.69716219,207.42,207.41,0.03]
[1756457796458,28.25716219,207.42,207.41,0.03]
[1756457796762,28.69716219,207.42,207.41,0.03]
[1756457797137,28.25716219,207.42,207.41,0.03]
[1756457797852,4.81998986,207.47,207.41,0.03]
[1756457798036,26.44,207.48,207.41,0.03]
[1756457798037,28.25716219,207.43,207.41,0.03]
[1756457798238,28.25716219,207.42,207.41,0.03]
[1756457798437,28.69716219,207.42,207.41,0.03]
[1756457798937,33.51829804,207.42,207.41,0.03]
[1756457800263,0.44,207.42,207.41,0.03]
[1756457800470,28.25716219,207.42,207.41,0.03]
[1756457800660,0.44,207.46,207.41,0.03]
[1756457800661,4.82052312,207.45,207.41,0.03]
[1756457800858,28.25716219,207.45,207.41,0.03]
[1756457801240,28.25716219,207.46,207.41,0.03]
[1756457801563,28.25716219,207.45,207.41,0.03]
[1756457801742,28.25716219,207.45,207.42,0.65]
[1756457801935,28.25716219,207.48,207.43,0.65]
[1756457802149,28.25716219,207.47,207.41,28.28716219]
[1756457802342,28.25716219,207.47,207.42,4.82113585]
[1756457803063,28.25716219,207.47,207.43,0.65]
[1756457803267,28.69716219,207.51,207.45,28.25716219]
[1756457803463,28.25716219,207.5,207.44,28.25716219]
[1756457803960,0.44,207.51,207.42,28.25716219]
[1756457803961,28.25716219,207.49,207.42,28.25716219]
[1756457804160,28.25716219,207.49,207.41,0.03]
[1756457804364,0.44,207.48,207.41,0.03]
[1756457804756,28.25716219,207.47,207.42,0.03]
[1756457804952,28.69716219,207.46,207.42,0.03]
[1756457805163,28.25716219,207.43,207.42,0.03]
[1756457805363,19.5658516,207.43,207.42,0.03]
[1756457805670,0.44,207.43,207.42,0.03]
[1756457806573,19.5658516,207.45,207.42,0.03]
[1756457806755,0.44,207.44,207.42,0.03]
[1756457807156,19.5658516,207.46,207.42,0.03]
[1756457807356,4.82023989,207.46,207.42,0.03]
[1756457807555,30.81990116,207.48,207.43,19.5658516]
[1756457807959,19.5658516,207.44,207.42,0.03]
[1756457808157,19.5658516,207.43,207.42,0.03]
[1756457808360,24.82675503,207.43,207.42,0.03]
[1756457808664,24.82675503,207.43,207.41,0.03]
[1756457808871,19.5658516,207.42,207.41,0.03]
[1756457809166,19.9758516,207.42,207.41,0.03]
[1756457809351,60.9958516,207.42,207.41,0.03]
[1756457809867,65.81698745,207.42,207.41,0.03]
[1756457811249,65.81698745,207.42,207.41,1e-08]
[1756457811650,24.79698745,207.42,207.41,1e-08]
[1756457811854,65.75698745,207.42,207.41,1e-08]
[1756457812257,46.19113585,207.42,207.41,1e-08]
[1756457812556,0.41,207.48,207.41,0.65000001]
[1756457812868,19.5658516,207.45,207.41,0.65000001]
[1756457813170,19.5658516,207.45,207.41,1e-08]
[1756457813468,24.38637683,207.45,207.41,1e-08]
[1756457813660,19.5658516,207.42,207.41,1e-08]
[1756457813866,5.23052523,207.45,207.41,1e-08]
[1756457813867,19.5658516,207.45,207.41,1e-08]
[1756457814072,0.41,207.46,207.41,1e-08]
[1756457814273,19.5658516,207.42,207.41,1e-08]
[1756457814668,19.5658516,207.43,207.41,1e-08]
[1756457815397,91.75698745,207.42,207.41,1e-08]
[1756457815691,103.80982709,207.42,207.3,0.65]
[1756457815893,19.5658516,207.34,207.3,0.65]
[1756457816187,41.14,207.37,207.3,0.65]
[1756457816387,19.5658516,207.36,207.3,0.65]
[1756457816693,19.5658516,207.35,207.3,5.47385789]
[1756457816862,19.5658516,207.35,207.31,0.65]
[1756457817059,19.5658516,207.34,207.28,0.65]
[1756457817285,19.5658516,207.33,207.28,0.65]
[1756457817587,19.5658516,207.35,207.29,4.82415939]
[1756457817891,19.5658516,207.34,207.29,4.82415939]
[1756457818085,19.5658516,207.34,207.3,0.65]
[1756457818292,19.5658516,207.31,207.26,0.65]
[1756457818459,19.5658516,207.32,207.26,0.65]
[1756457818791,19.5658516,207.34,207.27,19.5658516]
[1756457819000,19.5658516,207.34,207.28,0.65]
[1756457819290,19.5658516,207.33,207.28,0.65]
[1756457819459,4.82304055,207.34,207.28,0.65]
[1756457819661,19.5658516,207.32,207.28,0.65]
[1756457819966,19.5658516,207.33,207.28,4.82434621]
[1756457820160,19.5658516,207.31,207.21,2.5167902]
[1756457820355,4.82313813,207.34,207.24,0.65]
[1756457820585,19.5658516,207.31,207.24,20.2158516]
[1756457820978,19.5658516,207.3,207.24,20.2158516]
[1756457821193,41.06,207.33,207.24,0.65]
[1756457821381,19.5658516,207.3,207.24,5.47529119]
[1756457821587,45.86342314,207.33,207.24,25.04114279]
[1756457821798,19.5658516,207.31,207.24,25.04114279]
[1756457822781,19.5658516,207.29,207.24,5.47529119]
[1756457823290,19.5658516,207.29,207.24,4.82529119]
[1756457823493,19.5658516,207.29,207.25,0.69]
[1756457823710,19.5658516,207.28,207.25,0.69]
[1756457824003,19.5658516,207.28,207.24,4.82529119]
[1756457824299,41.41,207.27,207.24,0.03]
[1756457824669,19.5658516,207.25,207.24,0.03]
[1756457825193,19.9758516,207.25,207.24,0.03]
[1756457825686,19.5658516,207.25,207.24,0.03]
[1756457825877,24.80094207,207.25,207.24,0.03]
[1756457826476,24.80094207,207.25,207.21,0.03]
[1756457826683,45.5658516,207.22,207.21,0.03]
[1756457826886,86.7458516,207.22,207.21,0.03]
[1756457827081,87.1658516,207.22,207.21,0.03]
[1756457827291,45.9458516,207.22,207.21,0.03]
[1756457827474,87.1658516,207.22,207.21,0.03]
[1756457827880,91.99164061,207.22,207.21,0.03]
[1756457829189,72.42578901,207.22,207.19,1e-08]
[1756457829390,19.5658516,207.2,207.19,1e-08]
[1756457829581,19.5658516,207.2,207.01,12.07659569]
[1756457829582,26.0,207.09,207.01,2.5194004]
[1756457829783,19.5658516,207.02,207.01,2.5194004]
[1756457829981,19.5658516,207.15,206.94,28.13973491]
[1756457829982,20.0,207.14,206.97,19.5658516]
[1756457830293,19.5658516,207.04,207.01,0.69]
[1756457830600,41.34,207.08,207.02,0.69]
[1756457830898,67.34,207.08,206.99,0.69]
[1756457831080,19.5658516,207.01,206.99,0.69]
[1756457831276,67.72,207.08,206.99,0.69]
[1756457831597,0.38,207.11,207.0,20.2558516]
[1756457831789,67.38,207.11,207.01,0.69]
[1756457831984,19.5658516,207.07,207.01,0.69]
[1756457832185,26.0,207.11,207.01,5.52067313]
[1756457832384,0.38,207.14,207.01,5.52067313]
[1756457832385,19.5658516,207.12,207.02,0.69]
[1756457832584,19.5658516,207.09,207.02,0.69]
[1756457832795,0.38,207.12,207.02,0.69]
[1756457833097,19.5658516,207.05,207.02,0.69]
[1756457833490,19.5658516,207.06,207.03,0.69]
[1756457833672,19.5658516,207.08,207.03,0.69]
[1756457833878,41.88,207.07,206.93,0.69]
[1756457834099,41.88,207.07,206.85,24.17132099]
[1756457834100,19.5658516,207.01,206.95,0.69]
[1756457834304,19.5658516,206.96,206.94,23.30742499]
[1756457834487,26.0,207.04,206.95,0.69]
[1756457834687,19.5658516,207.02,206.95,20.2558516]
[1756457834888,40.526086,207.04,206.94,28.13968254]
[1756457835083,0.38,207.12,207.0,19.5658516]
[1756457835283,19.5658516,207.07,207.01,20.2558516]
[1756457835482,19.5658516,207.07,207.02,0.69]
[1756457835688,19.5658516,207.07,207.03,0.69]
[1756457835897,19.5658516,207.07,207.04,5.51988947]
[1756457836089,19.5658516,207.07,207.04,4.82988947]
[1756457836284,19.5658516,207.09,207.05,0.69]
[1756457836496,19.5658516,207.07,207.02,0.69]
[1756457836689,19.5658516,207.09,207.03,0.69]
[1756457836898,19.5658516,207.1,207.04,19.5658516]
[1756457837203,19.5658516,207.1,207.05,0.69]
[1756457837418,19.5658516,207.1,207.06,0.69]
[1756457838198,14.519056,207.14,207.07,0.69]
[1756457838384,19.34671857,207.14,207.07,0.69]
[1756457838590,19.5658516,207.1,207.07,0.69]
[1756457838987,19.5658516,207.13,207.08,0.69]
[1756457839305,19.5658516,207.09,207.04,0.69]
[1756457839503,19.5658516,207.15,207.0,0.69]
[1756457839504,19.5658516,207.05,207.0,0.69]
[1756457839693,19.5658516,207.01,206.96,0.69]
[1756457840013,19.5658516,207.02,206.96,5.52176842]
[1756457840232,5.20963806,207.06,206.96,25.08762002]
[1756457840503,5.20963806,207.06,206.94,23.30742499]
[1756457840504,26.0,207.02,206.94,23.30742499]
[1756457840714,16.90343309,207.06,206.96,19.5658516]
[1756457840715,4.82963806,207.06,206.96,19.5658516]
[1756457840887,13.595594,207.05,206.97,20.2558516]
[1756457841088,19.5658516,207.03,206.97,0.69]
[1756457841317,19.5658516,207.01,206.97,0.69]
[1756457841479,13.595594,207.06,206.98,0.69]
[1756457841687,19.5658516,207.03,206.98,0.69]
[1756457842007,19.5658516,207.04,206.99,0.69]
[1756457842309,19.5658516,207.04,206.94,35.38818603]
[1756457842310,19.5658516,207.02,206.97,4.8316181]
[1756457842517,19.5658516,207.02,206.98,0.69]
[1756457842686,0.38,207.02,206.97,0.03]
[1756457842887,19.5658516,206.99,206.97,0.03]
[1756457843405,0.38,207.02,206.97,0.03]
[1756457843595,19.5658516,206.98,206.97,0.03]
[1756457844402,24.77723627,206.98,206.97,0.03]
[1756457844929,26.0,206.95,206.74,14.531716]
[1756457845220,26.0,206.91,206.73,1.06958959]
[1756457845412,19.5658516,206.77,206.75,2.52242178]
[1756457845593,41.92,206.84,206.73,1.06958959]
[1756457845788,19.5658516,206.85,206.73,1.06958959]
[1756457845986,19.5658516,206.74,206.73,1.06958959]
[1756457846184,19.5658516,206.74,206.54,20.0]
[1756457846185,26.0,206.71,206.53,14.546512]
[1756457846412,56.06117983,206.74,206.54,0.69]
[1756457846413,16.92947663,206.74,206.54,0.69]
[1756457846605,19.5658516,206.65,206.57,19.5658516]
[1756457846808,19.5658516,206.61,206.57,0.69]
[1756457847113,19.5658516,206.59,206.53,2.52506454]
[1756457847313,26.0,206.67,206.53,2.52506454]
[1756457847314,0.5,206.63,206.53,2.52506454]
[1756457847486,19.5658516,206.59,206.48,52.93004]
[1756457847684,19.5658516,206.62,206.54,19.5658516]
[1756457848087,19.5658516,206.56,206.47,2.52559915]
[1756457848310,4.83886576,206.66,206.47,2.52559915]
[1756457848311,14.552863,206.68,206.48,42.68]
[1756457848618,0.5,206.72,206.51,13.59559401]
[1756457848913,26.0,206.7,206.58,19.5658516]
[1756457849117,26.0,206.7,206.59,19.5658516]
[1756457849295,28.52331627,206.66,206.59,0.69]
[1756457849490,28.52331627,206.67,206.6,28.52331627]
[1756457849689,26.0,206.7,206.6,28.52331627]